Cogmind - Beta 13 X1 *** ADVENTURER MODE // 2023.12.02 @ 05:21:02 Player: Minty Result: Destroyed by T3-ETY(R) with Subdweller Laser Performance ------------- Evolutions (0) 0 Regions Visited (3) 600 Robots Destroyed (4) 20 Value Destroyed (122) 122 Prototype IDs (2) 40 Alien Tech Used (0) 0 Bonus (0) 0 TOTAL SCORE: 782 Bonus ------- None Cogmind --------- Core Integrity 0/250 Matter 325/400 Energy 70/100 System Corruption 0% Temperature Cool (6) Movement Core (200) Ox3 Location -10/Subcaves Parts ------- > --- POWER (1) -------- (None) > --- PROPULSION (2) --- (None) > --- UTILITY (2) ------ Small Storage Unit Medium Matter Pod > --- WEAPON (2) ------- Medium Laser Small Laser > --- INVENTORY (8) ---- Heat Sink Small Laser Small Laser Particle Gun Peak State ------------ > --- POWER ------------ Light Ion Engine > --- PROPULSION ------- Aluminum Leg Aluminum Leg > --- UTILITY ---------- Small Storage Unit Medium Matter Pod > --- WEAPON ----------- Medium Laser Particle Gun > --- INVENTORY -------- Ion Engine Small Laser Small Laser Mining Laser Mining Laser [Rating: 8] Favorites ----------- Power Light Ion Engine Engine Light Ion Engine Propulsion Aluminum Leg Leg Aluminum Leg Utility Small Storage Unit Storage Small Storage Unit Weapon Medium Laser Energy Gun Medium Laser Special Weapon Mining Laser Build | -11 -10 -10 -10 ------- Run | Jun Mat Min Sub Slots Evolved . | . . . . Power . | . . . . Propulsion . | . . . . Utility . | . . . . Weapon . | . . . . Parts Attached 8 | . 1 1 6 Power 1 | . . . 1 Engine 1 | . . . 1 Core . | . . . . Reactor . | . . . . Propulsion . | . . . . Treads . | . . . . Leg . | . . . . Wheel . | . . . . Hover . | . . . . Flight . | . . . . Utility 1 | . 1 . . Device . | . . . . Storage 1 | . 1 . . Processor . | . . . . Hackware . | . . . . Protection . | . . . . Artifact . | . . . . Weapon 6 | . . 1 5 Energy Gun 4 | . . 1 3 Energy Cannon . | . . . . Ballistic Gun . | . . . . Ballistic Cannon . | . . . . Launcher . | . . . . Special Weapon 2 | . . . 2 Impact Weapon . | . . . . Slashing Weapon . | . . . . Piercing Weapon . | . . . . Special Melee Weapon . | . . . . Unidentified Prototypes . | . . . . Parts Lost 6 | . . . 6 Power 2 | . . . 2 Propulsion 2 | . . . 2 Utility . | . . . . Weapon 2 | . . . 2 Highest Loss Streak 5 | . . . 5 To Critical Strikes . | . . . . Average Slot Usage (%) 93 | . 92 100 90 Engine 13 | . 14 14 12 Leg 24 | . 28 28 21 Storage 25 | . 21 28 28 Energy Gun 27 | . 28 28 25 Naked Turns . | . . . . Heaviest Build 15 | 11 13 15 15 Greatest Support 20 | 20 20 20 20 Greatest Overweight (x) 4 | . . . 4 Average Overweight (x) . | . . . . Largest Inventory Capacity 8 | . 8 8 8 Average Capacity 8 | . 8 8 8 Most Carried 6 | . 6 5 5 Average Carried 4 | . 2 4 4 Final Capacity 8 | 8 8 8 8 Final Carried 6 | 6 4 5 4 Class Distribution -------------------- 100% | Mutant Dominant Class ---------------- Mutant | -10/Materials Mutant | -10/Mines Mutant | -10/Subcaves Resources | -11 -10 -10 -10 ----------- Run | Jun Mat Min Sub Matter Collected 256 | 200 15 41 . Remotely . | . . . . Salvage Created 114 | . 15 99 . Parts 3 | . 2 1 . Haulers Intercepted . | . . . . Recyclers Shooed . | . . . . Parts Field Recycled . | . . . . Retrieved Matter . | . . . . Parts Self-Destructed 3 | . . . 3 Prevented . | . . . . Kills | -11 -10 -10 -10 ------- Run | Jun Mat Min Sub Combat Hostiles Destroyed 3 | . . 2 1 Guns 3 | . . 2 1 Classes Destroyed 3 | . 1 1 1 Worker 1 | . 1 . . Grunt 2 | . . 2 . Subdweller 1 | . . . 1 Best Kill Streak 2 | . 1 2 1 Combat Bots Only 2 | . . 2 1 Max Kills in Single Turn 1 | . 1 1 1 Gunslinging . | . . . . Exploded . | . . . . Melee . | . . . . Uniques/NPCs Destroyed . | . . . . Combat | -11 -10 -10 -10 -------- Run | Jun Mat Min Sub Damage Taken 988 | . 174 116 698 Core 259 | . 41 41 177 Absorbed by Shields . | . . . . Ignored by Resistances 289 | . 53 37 199 Core Remaining (%) 100 | 100 . . . Volleys Fired 47 | . 12 15 20 Largest 2 | . 2 2 2 Hottest 200 | . 90 90 200 Shots Fired 83 | . 24 22 37 Gun 80 | . 24 22 34 Cannon . | . . . . Launcher . | . . . . Special 3 | . . . 3 Kinetic . | . . . . Thermal 83 | . 24 22 37 Explosive . | . . . . Electromagnetic . | . . . . Robot Hit Streak 18 | . 8 12 18 Robot Miss Streak 1 | . 1 1 1 Penetration Max . | . . . . Secondary Targets 1 | . . 1 . Max Gunslinging Chain 1 | . . 1 . Shots Hit Robots 68 | . 16 18 34 Core Hits 11 | . 4 5 2 Critical Kills . | . . . . Critical Parts Destroyed . | . . . . Critical Strikes 3 | . 1 1 1 Burn 3 | . 1 1 1 Melee Attacks . | . . . . Impact . | . . . . Slashing . | . . . . Piercing . | . . . . Sneak Attacks . | . . . . Combat Hostiles . | . . . . Follow-up Attacks . | . . . . Damage Inflicted 633 | . 187 209 237 Guns 561 | . 187 209 165 Cannons . | . . . . Explosions . | . . . . Melee . | . . . . Ramming . | . . . . Kinetic . | . . . . Thermal 633 | . 187 209 237 Explosive . | . . . . Electromagnetic . | . . . . Impact . | . . . . Slashing . | . . . . Piercing . | . . . . Highest Corruption . | . . . . Average Corruption . | . . . . Corruption Purged . | . . . . Corruption Blocked . | . . . . Overload Shots . | . . . . Overflow Damage . | . . . . Projectiles . | . . . . Explosions . | . . . . Melee . | . . . . Knockbacks . | . . . . Impact . | . . . . Kinetic . | . . . . Secondary . | . . . . Self-Inflicted Damage . | . . . . Shots . | . . . . Rammed . | . . . . Targets Rammed . | . . . . Kicked . | . . . . Crushed . | . . . . Highest Temperature 315 | . 303 315 6 Average Temperature 139 | . 106 181 4 Received Heat Transfer 408 | . 129 105 174 Effects 4 | . 2 2 . Shutdowns 1 | . . 1 . Interference 3 | . 2 1 . Siege Activations . | . . . . Robots Corrupted . | . . . . Combat Hostiles . | . . . . Parts Fried . | . . . . Impact Corruptions . | . . . . Robots Melted . | . . . . Combat Hostiles . | . . . . Parts Melted 2 | . . 2 . Heat Transferred 1834 | . 570 620 644 Parts Sabotaged . | . . . . Parts Stolen . | . . . . Parts Stripped . | . . . . Power Chain Reactions . | . . . . Missiles Intercepted . | . . . . Alert | -11 -10 -10 -10 ------- Run | Jun Mat Min Sub Peak Influence 62 | . 39 62 . Initial 12 | . . 12 . Average 32 | . 20 50 . Maximum Alert Level . | . . . . Low Security (%) 100 | . 100 100 . Level 1 . | . . . . Level 2 . | . . . . Level 3 . | . . . . Level 4 . | . . . . Level 5 . | . . . . High Security . | . . . . Max Security . | . . . . Squads Dispatched . | . . . . Investigation . | . . . . Extermination . | . . . . Reinforcement . | . . . . Assault . | . . . . Garrison . | . . . . Intercept . | . . . . Searches Triggered . | . . . . Construction Impeded . | . . . . Haulers Reinforced . | . . . . Active Scanning Responses . | . . . . Cargo Convoy Interrupts . | . . . . Stealth | -11 -10 -10 -10 --------- Run | Jun Mat Min Sub Distress Signals 1 | . 1 . . Communications Jammed . | . . . . Distress Signals . | . . . . Times Spotted 9 | . 5 2 2 Peak Tracking Total 3 | . 3 2 2 Tactical Retreats . | . . . . Traps | -11 -10 -10 -10 ------- Run | Jun Mat Min Sub Traps Triggered . | . . . . Indirectly . | . . . . Trap Hack Attempts . | . . . . Triggered . | . . . . Disarmed . | . . . . Reprogrammed . | . . . . Reused . | . . . . Traps Extracted . | . . . . Installed . | . . . . Triggered . | . . . . Machines | -11 -10 -10 -10 ---------- Run | Jun Mat Min Sub Machines Disabled . | . . . . Max in Single Turn . | . . . . Machines Repaired . | . . . . Machines Sabotaged . | . . . . Overloaded Fab Kills . | . . . . Hacking | -11 -10 -10 -10 --------- Run | Jun Mat Min Sub Machines Accessed 3 | . 3 . . Terminals 3 | . 3 . . Fabricators . | . . . . Repair Stations . | . . . . Recycling Units . | . . . . Scanalyzers . | . . . . Garrison Access . | . . . . Total Hacks 5 | . 5 . . Successful 3 | . 3 . . Failed 2 | . 2 . . Catastrophic . | . . . . Database Lockouts . | . . . . Manual 4 | . 4 . . Terminals 5 | . 5 . . Fabricators . | . . . . Repair Stations . | . . . . Recycling Units . | . . . . Scanalyzers . | . . . . Garrison Access . | . . . . Terminal Hacks 2 | . 2 . . Prototype ID Bank 1 | . 1 . . Locate Traps 1 | . 1 . . Fabricator Hacks . | . . . . Repair Station Hacks . | . . . . Recycling Unit Hacks . | . . . . Scanalyzer . | . . . . Garrison Access Hacks . | . . . . Unauthorized Hacks 1 | . 1 . . Terminals 1 | . 1 . . Botnet 1 | . 1 . . Fabricators . | . . . . Repair Stations . | . . . . Recycling Units . | . . . . Scanalyzers . | . . . . Garrison Access . | . . . . Data Cores Recovered . | . . . . Used . | . . . . Hacking Detections 3 | . 3 . . Full Trace Events . | . . . . Feedback Events . | . . . . Feedback Blocked . | . . . . Robot Schematics Acquired . | . . . . Robots Built . | . . . . Authchips . | . . . . Time . | . . . . Total Robot Build Rating . | . . . . Part Schematics Acquired . | . . . . Parts Built . | . . . . Authchips . | . . . . Time . | . . . . Total Part Build Rating . | . . . . Parts Repaired . | . . . . Time . | . . . . Parts Recycled . | . . . . Recycled Matter . | . . . . Retrieved Matter . | . . . . Retrieved Components . | . . . . Parts Scanalyzed . | . . . . Part Schematics Acquired . | . . . . Parts Damaged . | . . . . Bothacking | -11 -10 -10 -10 ------------ Run | Jun Mat Min Sub Used RIF Installer . | . . . . Robots Hacked . | . . . . Non-combat . | . . . . Combat . | . . . . Robot Hacks Applied . | . . . . Relay Couplers Released . | . . . . Fabnet Peak Effective % . | . . . . Robots Rewired . | . . . . Allies Hacked . | . . . . Hacks Repelled . | . . . . Allies | -11 -10 -10 -10 -------- Run | Jun Mat Min Sub Total Allies . | . . . . Largest Group . | . . . . Highest-Rated Group . | . . . . Highest-Rated Ally . | . . . . Total Orders . | . . . . Ally Attacks . | . . . . Total Damage . | . . . . Kills . | . . . . Allies Corrupted . | . . . . Allies Melted . | . . . . Intel | -11 -10 -10 -10 ------- Run | Jun Mat Min Sub Robot Analysis Total . | . . . . Derelict Logs Recovered 2 | . . . 2 Drone Launches . | . . . . Drone Recoveries . | . . . . Exploration | -11 -10 -10 -10 ------------- Run | Jun Mat Min Sub Turns Passed 585 | . 191 120 274 Spaces Moved 335 | 1 125 44 165 Core 2 | . . . 2 Treads . | . . . . Legs 333 | 1 125 44 163 Wheels . | . . . . Hover . | . . . . Flight . | . . . . Fastest Speed 120 | 120 120 120 120 Average Speed 120 | 120 120 120 122 Slowest Speed 250 | 120 120 120 250 Overloaded Moves . | . . . . Propulsion Burnouts . | . . . . Robots Hopped . | . . . . Cave-ins Triggered . | . . . . Exploration Rate (%) 15 | 2 24 16 19 Regions Visited 3 Branch Regions 2 Pre-discovered Areas 1 | . . . 1 Known Exits Taken . | . . . . Unknown Exits Taken 3 | 1 1 1 . Scrap Searched 1 | . . 1 . Spaces Dug . | . . . . Terrain Destroyed . | . . . . Melee . | . . . . Projectile . | . . . . AOE . | . . . . Terrain Rammed . | . . . . Walls Destroyed . | . . . . Machines Disabled . | . . . . Actions | -11 -10 -10 -10 --------- Run | Jun Mat Min Sub Total 425 | . 143 89 193 Wait 30 | . . 29 1 Move 332 | . 124 43 165 Hop . | . . . . Pick Up 3 | . 2 . 1 Fast Attach 3 | . 1 1 1 Attach 2 | . . . 2 Detach 1 | . . 1 . Swap 3 | . . . 3 Drop 4 | . 4 . . Fire 47 | . 12 15 20 Melee . | . . . . Ram . | . . . . Kick . | . . . . Crush . | . . . . Escape Stasis . | . . . . Rewire . | . . . . Trap . | . . . . Miscellaneous . | . . . . Route ------- -11/Junkyard -10/Materials (discovered 2 exits: [*Mat] / [*Min]) -10/Mines -10/Subcaves History --------- Turn | Location | Event 1 | -11/Junkyard | Discovered new exit (range 0) 1 | -11/Junkyard | Entered Materials 140 | -10/Materials | Discovered new exit (range 14) 141 | -10/Materials | Discovered new exit (range 14) 192 | -10/Materials | Entered Mines 306 | -10/Mines | Discovered new exit (range 5) 307 | -10/Mines | Build established: Mutant 312 | -10/Mines | Entered Subcaves 456 | -10/Subcaves | Shifting Twisted Machinery released Scrap Shield 459 | -10/Subcaves | Shifting Twisted Machinery released Flamer 466 | -10/Subcaves | Learned Materials emergency access door positions 471 | -10/Subcaves | Learned location of Mines (-9) 533 | -10/Subcaves | Core integrity fell below 50% 563 | -10/Subcaves | Core integrity fell below 20% 567 | -10/Subcaves | Lost 5 parts (1p2n2w) 586 | -10/Subcaves | Destroyed by T3-ETY(R) with Subdweller Laser Last Messages --------------- LOCATION=UNKNOWN AMBIENT_HEAT=-10 GOAL=ESCAPE 00350_ IQ-M6G(u) builds Twisted Machinery. 00401_ M6-8DV(u) builds Twisted Machinery. Scrap Shield falls loose from the Twisted Machinery. Flamer falls loose from the Twisted Machinery. 00466_ Acquired derelict log, extracted data. Data stored: Materials emergency access points. 00471_ Acquired derelict log, extracted data. World map updated: -9/Mines. 00514_ 9A-1QN(R) suffers critical hit (Burn). 00518_ Aluminum Leg destroyed. 00528_ Lgt. Ion Engine destroyed. 00534_ Mining Laser destroyed. 00541_ Destroyed Scrap Shield. 00543_ 9A-1QN(R) destroyed. 00547_ Acquired Sml. Laser. 00554_ Acquired Heat Sink. 00576_ Ion Engine destroyed. Map ----- +----------------------------------------------------+ | ?????????????????????????????????????????????????? | | ?????????????????????????????????????????????????? | | ?????????????????????????????????????????????????? | | ?????????????????????????????????????????????????? | | ?????????????????????????????????????????????????? | | ?????????????????????????????????????????????????? | | ?????????????????????????????????????????????????? | | ?????????????????????????????????????????????????? | | ?????????????????????????????????????????????????? | | ?????????????????????????????????????????????????? | | ?????????????????????????????????????????????????? | | ?????????????????????????????????????????????????? | | ?????????????????????????????????????????????????? | | ?????????????????????????????????????????????????? | | ?????????????????????????????????????????????????? | | ?????????????????????????????????????????????????? | | ?????????????????????????????????????????????????? | | ????????????????????????????????########?????????? | | ??????????????????????????????### ##????????? | | ?????????????????????????????## ###??????? | | ?????????????????????#??????## #??????? | | ????????????????????## ????## ## #?????? | | ????????????????????# ???## ## ##?????? | | ????????????????????#" ?## ##### ##?##???? | | ????????????????????#"" ## ##### #### ???? | | ????????????????????#""" @ ## ## ????? | | ????????????????????#"" R ####### ????? | | ????????????????????#"""" ##???? #????? | | ????????????????????# #????# ##???? | | ????????????????????## #???## #???? | | ?????????????????????## ##???# #????? | | ??????????????????????# ""|####### ####?# | | ??????????????????????# #!"" # # ### | | ??????????????????????# ## ## """ " | | ?????????????????????# ### ## """" "" | | ???????????????????# ### #?#### """### #"" | | ??????????????????? ??#"????# #?#### | | ??????????????????? ???# ????# ##????## ## | | ?????????????????? ??? ????# ##??????# ### | | ????????????????? ???? ????## #????????# ? | | ???????????????? ????? ?????# ????????# | | ????????????????? ?????? ?????? ????????## | | ???????????????????????? ?????????????????" # | | ?????????????????????????????????????????#" ### | | ?????????????????????????????????????????"" ###?# | | ????????????????????????????????????????# " #??# | | ?????????????????????????????????????????# ?? | | ????????????????????????????????????????? ?? | | ????????????????????????????????????????? ??? | | ????????????????????????????????????????? ???? | +----------------------------------------------------+ Best States ------------- Heat Dissipation 25 Energy Generation 10 Energy Capacity 250 Matter Stores 360 Matter Capacity 400 Sight Range 16 Terrain Scan Density 10 Resistance: KI 20 Resistance: TH 20 Resistance: EX 20 Resistance: EM 20 Resistance: I 20 Resistance: S 20 Resistance: P 20 Evasion (%) 55 Offensive Hacking 10 Item Schematics ----------------- None Robot Schematics ------------------ None Fabricated ------------ Nothing Alien Tech Used ----------------- None Achievements -------------- None Challenges ------------ None Game ------ Seed PhysicsReactiveTreads Manual? 0 Play Time 00:03:34 Cumulative 540.9 hours Start 2023.12.02 @ 05:18:28 End 2023.12.02 @ 05:21:02 Sessions 1 Manual Loads 0 Difficulty Adventurer Special Mode None Game No. 418 Rogue 167 Adventurer 108 Explorer 143 Win Type - Total 23 Types 19/0/3/0/0/0/0/1/0 Lore% 75 Gallery% 89 Achievement% 73 Wizard Run 0 Options --------- ASCII 0 Keyboard 1 Movement Numpad Keybinds 0 Fullscreen 2 Font 18/X11Bold Map View 76x50 Tactical HUD 1 Map Filters NONE Filters NONE Steam 1 RUN: e1ff4448-22eb-4708-86b0-2ed2a6a6aaec